Cogmind - Beta 16.1 @@@ ROGUE MODE // 2026.04.25 @ 20:35:06 Player: The Overplayer Result: Destroyed self with Heavy Rocket Launcher Performance ------------- Evolutions (2) 1000 Regions Visited (8) 1600 Robots Destroyed (129) 645 Value Destroyed (4405) 4405 Prototype IDs (27) 540 Alien Tech Used (0) 0 Bonus (1877) 1877 TOTAL SCORE: 10067 Bonus ------- High Alert Combat Kills 870 Follower Combat Kills 7 Entered Garrisons 200 Used RIF Installer 500 Aligned with FarCom 300 Cogmind --------- Core Integrity 0/550 Matter 242/300 Energy 159/160 System Corruption 1% Temperature Hot (254) Movement Treading (200) Ox1 Location -8/Materials Parts ------- > --- POWER (1) -------- Light Nuclear Core > --- PROPULSION (4) --- Improved Treads Improved Treads Improved Treads (fused) Improved Treads > --- UTILITY (2) ------ Advanced Heat Sink Huge Storage Unit > --- WEAPON (4) ------- High-powered Shotgun Heavy Rocket Launcher > --- INVENTORY (25) --- Improved Treads Improved Treads Improved Treads Improved Treads High-capacity Matter Pod (200) Transport Network Coupler Core Analyzer Weapon Cycler Weapon Cycler Improved Heavy Armor Plating Improved Heavy Armor Plating Improved Heavy Armor Plating Focal Shield Improved Shield Generator Authchip [R/Combat] Relay Coupler [Swarmer] (42) Relay Coupler [Swarmer] (40) Relay Coupler [Sentry] (28) Proton Missile Launcher Remote Datajack Powered Hammer Peak State ------------ > --- POWER ------------ Light Nuclear Core > --- PROPULSION ------- Improved Treads Improved Treads Improved Treads Armored Treads > --- UTILITY ---------- Advanced Heat Sink Huge Storage Unit > --- WEAPON ----------- Thermic Laser Thermic Laser Remote Datajack Powered Hammer > --- INVENTORY -------- Light Nuclear Core High-capacity Matter Pod Transport Network Coupler Core Analyzer Weapon Cycler Weapon Cycler Improved Heavy Armor Plating Improved Heavy Armor Plating Improved Heavy Armor Plating Focal Shield Improved Shield Generator Authchip [R/Combat] Relay Coupler [Swarmer] Relay Coupler [Swarmer] Relay Coupler [Sentry] High-powered Shotgun Proton Missile Launcher Heavy Rocket Launcher [Rating: 44] Favorites ----------- Power Cooled Ion Engine Engine Cooled Ion Engine Power Core Light Nuclear Core Propulsion Light Treads Treads Light Treads Leg VSS Leg Wheel Armored Wheel Hover Unit Cooled Airjet Utility Huge Storage Unit Device Focal Shield Storage Huge Storage Unit Processor Machine Analyzer Hackware Relay Coupler [NC] Protection Hardened Medium Armor Plating Weapon Flak Gun Energy Gun Beam Rifle Energy Cannon Advanced Beam Cannon Ballistic Gun Flak Gun Ballistic Cannon Assault Cannon Launcher Heavy Rocket Launcher Special Weapon Remote Datajack Impact Weapon Heavy Flail Build | -11 -10 -9 -9 -9 -8 -8 -8 -8 ------- Run | Yrd Mat Mat Min Exi Min Mat Gar Mat Slots Evolved 4 | . . 2 . . . 2 . . Power . | . . . . . . . . . Propulsion 2 | . . . . . . 2 . . Utility . | . . . . . . . . . Weapon 2 | . . 2 . . . . . . Parts Attached 97 | 6 14 19 . . 2 19 23 14 Power 13 | 1 2 5 . . . 1 2 2 Engine 11 | 1 2 5 . . . 1 1 1 Core 2 | . . . . . . . 1 1 Reactor . | . . . . . . . . . Propulsion 22 | 2 4 . . . . 3 7 6 Treads 15 | 2 . . . . . 2 5 6 Leg 2 | . . . . . . . 2 . Wheel 4 | . 4 . . . . . . . Hover 1 | . . . . . . 1 . . Flight . | . . . . . . . . . Utility 18 | 1 3 1 . . 1 3 4 5 Device 5 | . 1 . . . . 1 1 2 Storage 4 | 1 1 1 . . . 1 . . Processor 1 | . 1 . . . . . . . Hackware 5 | . . . . . . . 2 3 Protection 3 | . . . . . 1 1 1 . Artifact . | . . . . . . . . . Weapon 44 | 2 5 13 . . 1 12 10 1 Energy Gun 13 | 1 2 5 . . . . 5 . Energy Cannon 1 | . . . . . . 1 . . Ballistic Gun 24 | 1 2 8 . . 1 11 1 . Ballistic Cannon 2 | . 1 . . . . . 1 . Launcher 1 | . . . . . . . 1 . Special Weapon 1 | . . . . . . . 1 . Impact Weapon 2 | . . . . . . . 1 1 Slashing Weapon . | . . . . . . . . . Piercing Weapon . | . . . . . . . . . Special Melee Weapon . | . . . . . . . . . Unidentified Prototypes 4 | . . 1 . . . 3 . . Parts Lost 26 | . 1 . . . 1 4 17 3 Power 2 | . . . . . . . 2 . Propulsion 8 | . . . . . . 4 3 1 Utility 5 | . . . . . 1 . 4 . Weapon 11 | . 1 . . . . . 8 2 Highest Loss Streak 12 | . 1 . . . 1 3 12 2 To Critical Strikes . | . . . . . . . . . Average Backups 18 | 1 7 14 15 15 17 22 21 21 Power 1 | . . 1 1 1 1 1 1 . Propulsion . | . 1 2 2 2 2 . . . Utility 10 | . 3 8 7 7 7 11 12 16 Weapon 5 | 1 1 3 5 5 6 8 7 3 Tool/Special . | . . . . . . . . . Unused Backups 52 | . 6 8 1 . 1 4 15 17 Power 3 | . 2 . . . . . 1 . Propulsion 5 | . . . . . . . 1 4 Utility 32 | . 1 6 1 . . 2 10 12 Weapon 12 | . 3 2 . . 1 2 3 1 Tool/Special . | . . . . . . . . . Average Slot Usage (%) 96 | . 95 99 100 100 99 90 97 97 Engine 7 | . 14 11 11 11 11 9 4 . Core 2 | . . . . . . . 4 9 Treads 16 | . 5 . . . . 9 29 34 Leg 1 | . . . . . . . 4 . Wheel 10 | . 22 22 22 22 22 12 . . Hover 1 | . . . . . . 7 1 . Device 1 | . 1 . . . . . 1 5 Storage 10 | . 14 11 11 11 11 9 8 9 Processor 3 | . 8 11 11 11 6 . . . Protection 3 | . . . . . 4 6 5 . Energy Gun 10 | . 2 16 22 22 12 . 8 23 Ballistic Gun 23 | . 24 26 22 22 31 33 21 2 Ballistic Cannon 1 | . 1 . . . . . 2 . Special Weapon 1 | . . . . . . . 1 5 Peak Build Rating 44 | 5 13 21 22 23 24 41 41 44 Average Rating 29 | 4 10 19 21 22 23 37 36 40 On Entrance 20 | . 5 13 21 22 23 23 38 41 Avg Prop Armor Cover (%) 4 | . . . . . . 2 5 . Naked Turns . | . . . . . . . . . Heaviest Build 116 | 12 30 100 100 100 107 112 116 101 Greatest Support 92 | 40 40 24 24 24 24 48 80 92 Greatest Overweight (x) 9 | . 1 4 4 4 4 9 9 4 Average Overweight (x) 1 | . . 1 4 4 4 2 1 1 Largest Inventory Capacity 25 | 8 15 25 25 25 25 25 25 25 Average Capacity 22 | 6 9 16 25 25 25 24 24 25 Most Carried 25 | 3 15 15 15 18 19 25 25 25 Average Carried 19 | 1 7 14 14 15 18 22 22 24 Final Capacity 25 | 8 15 25 25 25 25 25 25 25 Final Carried 25 | 3 15 15 15 18 18 24 25 24 Class Distribution -------------------- 45% | Skirmisher 28% | Bothacker-Skirmisher 14% | Scavenger-Skirmisher 11% | Mutant Dominant Class ---------------- Mutant | -10/Materials Skirmisher | -9/Materials Skirmisher | -9/Mines Skirmisher | -9/Exiles Skirmisher | -8/Mines Skirmisher | -8/Materials Bothacker-Skirmisher | -8/Garrison Bothacker-Skirmisher | -8/Materials Resources | -11 -10 -9 -9 -9 -8 -8 -8 -8 ----------- Run | Yrd Mat Mat Min Exi Min Mat Gar Mat Matter Collected 3837 | 165 385 526 69 . 222 716 1317 437 Remotely . | . . . . . . . . . Salvage Created 4609 | . 757 951 68 . 202 820 1255 556 Parts 277 | . 49 77 6 . 6 55 66 18 Haulers Intercepted 10 | . 2 4 . . . 4 . . Recyclers Shooed 2 | . . 1 . . . . . 1 Parts Field Recycled . | . . . . . . . . . Retrieved Matter . | . . . . . . . . . Parts Self-Destructed . | . . . . . . . . . Prevented . | . . . . . . . . . Parts Restored . | . . . . . . . . . Kills | -11 -10 -9 -9 -9 -8 -8 -8 -8 ------- Run | Yrd Mat Mat Min Exi Min Mat Gar Mat Combat Hostiles Destroyed 100 | . 16 20 5 . 4 15 30 10 Guns 94 | . 16 20 5 . 4 14 28 7 Cannons 3 | . . . . . . 1 2 . AOE 2 | . . . . . . . . 2 Classes Destroyed 15 | . 5 2 . . 2 1 3 2 Worker 5 | . 1 1 . . . 2 . 1 Builder 1 | . . . . . . 1 . . Hauler 10 | . 2 4 . . . 4 . . Recycler 1 | . . . . . . . . 1 Operator 2 | . . 1 . . . . . 1 Watcher 10 | . 3 4 . . . 1 1 1 Swarmer 34 | . 6 9 5 . . 6 8 . Grunt 32 | . 10 5 . . 2 3 8 4 Brawler 2 | . . . . . 1 . 1 . Duelist 1 | . . . . . . . 1 . Protector 1 | . . . . . . . . 1 Sentry 18 | . . 6 . . . 5 5 2 Specialist 5 | . . . . . . . 3 2 Hunter 4 | . . . . . 1 1 1 1 Programmer 3 | . . . . . . . 3 . Best Kill Streak 12 | . 4 7 3 . 2 7 12 2 Combat Bots Only 12 | . 3 5 3 . 2 6 12 2 Max Kills in Single Turn 3 | . 1 3 1 . 1 2 2 2 Gunslinging 1 | . . 1 . . . . 1 . Exploded 2 | . . . . . . . . 2 Melee . | . . . . . . . . . Uniques/NPCs Destroyed . | . . . . . . . . . Combat | -11 -10 -9 -9 -9 -8 -8 -8 -8 -------- Run | Yrd Mat Mat Min Exi Min Mat Gar Mat Hostile Shots Fired 501 | . 80 50 15 . 21 103 154 78 Missed 127 | . 21 15 4 . 3 30 38 16 Hits 374 | . 59 35 11 . 18 73 116 62 Melee 5 | . . . . . . . 3 2 Projectile 369 | . 59 35 11 . 18 73 113 60 Critical Strikes 8 | . . . . . 1 . 4 3 Damage Taken 5000 | . 603 384 90 . 287 697 1756 1183 Core 791 | . 119 69 23 . 30 74 217 259 Absorbed by Shields . | . . . . . . . . . Regen/Repaired (Parts) 61 | . 61 . . . . . . . Core Remaining (%) 73 | 100 52 . . . 69 . . . Volleys Fired 281 | . 65 50 6 . 13 39 75 33 Largest 4 | . 2 4 4 . 4 4 4 4 Hottest 255 | . 80 158 158 . 158 152 178 255 Shots Fired 848 | . 125 201 24 . 53 133 232 80 Gun 789 | . 125 201 24 . 53 118 194 74 Cannon 40 | . . . . . . 15 25 . Launcher 6 | . . . . . . . 3 3 Special 13 | . . . . . . . 10 3 Kinetic 636 | . 104 149 12 . 35 118 204 14 Thermal 183 | . 11 52 12 . 18 15 15 60 Explosive 6 | . . . . . . . 3 3 Electromagnetic 10 | . 10 . . . . . . . Robot Hit Streak 16 | . 9 13 4 . 11 8 11 16 Robot Miss Streak 14 | . 5 5 3 . 5 14 7 3 Penetration Max 1 | . . . . . . 1 . . Secondary Targets 13 | . 1 2 2 . . 2 5 1 Max Gunslinging Chain 2 | . 1 1 1 . . 1 2 1 Shots Hit Robots 496 | . 78 111 10 . 35 59 149 54 Core Hits 271 | . 40 52 5 . 9 47 87 31 Critical Kills 3 | . 1 . . . . . 2 . Critical Parts Destroyed 2 | . . . . . . . 1 1 Critical Strikes 17 | . 1 2 . . 1 . 4 9 Burn 12 | . . 2 . . 1 . 1 8 Destroy 4 | . 1 . . . . . 2 1 Smash 1 | . . . . . . . 1 . Melee Attacks 29 | . . . . . . . 28 1 Impact 29 | . . . . . . . 28 1 Slashing . | . . . . . . . . . Piercing . | . . . . . . . . . Sneak Attacks . | . . . . . . . . . Combat Hostiles . | . . . . . . . . . Follow-up Attacks . | . . . . . . . . . Damage Inflicted 7951 | . 744 1399 163 . 509 1067 2615 1454 Guns 6640 | . 743 1399 163 . 509 926 1900 1000 Cannons 392 | . . . . . . 141 251 . Explosions 424 | . . . . . . . . 424 Melee 494 | . . . . . . . 464 30 Ramming 1 | . 1 . . . . . . . Kinetic 5028 | . 587 863 90 . 352 926 1984 226 Thermal 1929 | . 81 536 73 . 157 141 167 774 Explosive 424 | . . . . . . . . 424 Electromagnetic 75 | . 75 . . . . . . . Impact 494 | . . . . . . . 464 30 Slashing . | . . . . . . . . . Piercing . | . . . . . . . . . Highest Corruption 2 | . . 2 2 2 2 . 1 1 Average Corruption 1 | . . 1 2 2 2 . 1 1 Corruption Purged . | . . . . . . . . . Corruption Blocked . | . . . . . . . . . Effects 54 | . . 4 7 7 9 . 18 9 Message Errors 7 | . . . 1 2 . . 2 2 Matter Fused 18 | . . . 3 1 4 . 6 4 Heat Flow Errors 8 | . . 2 1 1 1 . 3 . Energy Discharges 5 | . . 1 . . 2 . 2 . Parts Fused 1 | . . . . . . . . 1 Data Loss (minor) 7 | . . . 2 2 1 . 2 . Data Loss (major) 3 | . . . . 1 . . 2 . Misfires 3 | . . 1 . . 1 . 1 . Alerts 1 | . . . . . . . . 1 Weapon Failures 1 | . . . . . . . . 1 Overload Shots . | . . . . . . . . . Overflow Damage 86 | . . . . . . . 72 14 Projectiles . | . . . . . . . . . Explosions . | . . . . . . . . . Melee 86 | . . . . . . . 72 14 Knockbacks 3 | . . . . . . . 3 . Impact . | . . . . . . . . . Kinetic 3 | . . . . . . . 3 . Secondary . | . . . . . . . . . Self-Inflicted Damage 181 | . . . . . . . 107 74 Shots 4 | . . . . . . . 2 2 Rammed 2 | . 1 . . . . . 1 . Targets Rammed 2 | . 1 . . . . . 1 . Kicked . | . . . . . . . . . Crushed . | . . . . . . . . . Highest Temperature 854 | . 90 338 299 178 407 464 399 854 Average Temperature 128 | . 22 92 121 90 146 106 141 244 Received Heat Transfer 1248 | . 246 108 . . 117 108 363 306 Effects 31 | . . . . . 1 6 4 20 Shutdowns 6 | . . . . . . 1 1 4 Energy Bleed 6 | . . . . . 1 . . 5 Interference 5 | . . . . . . . 3 2 Matter Decay 2 | . . . . . . . . 2 Short Circuit 4 | . . . . . . 2 . 2 Damage (minor) 3 | . . . . . . . . 3 Damage (major) 3 | . . . . . . 3 . . Damage (core) 2 | . . . . . . . . 2 Siege Activations . | . . . . . . . . . Martial Activations . | . . . . . . . . . Shielding Activations . | . . . . . . . . . Robots Disrupted . | . . . . . . . . . Combat Hostiles . | . . . . . . . . . Robots Corrupted 2 | . . . . . . . 1 1 Combat Hostiles 1 | . . . . . . . . 1 Parts Fried 1 | . . . . . . . . 1 Impact Corruptions 3 | . . . . . . . 2 1 Robots Melted 1 | . . 1 . . . . . . Combat Hostiles . | . . . . . . . . . Parts Melted 12 | . . 3 . . 1 . . 8 Heat Transferred 5794 | . 175 1517 185 . 481 259 407 2770 Parts Sabotaged . | . . . . . . . . . Parts Stolen . | . . . . . . . . . Parts Stripped . | . . . . . . . . . Power Chain Reactions . | . . . . . . . . . Alert | -11 -10 -9 -9 -9 -8 -8 -8 -8 ------- Run | Yrd Mat Mat Min Exi Min Mat Gar Mat Maximum Alert Level 5 | . . 1 . . . 1 5 4 Low Security (%) 51 | 100 100 94 100 . 100 88 6 . Level 1 7 | . . 5 . . . 11 12 . Level 2 7 | . . . . . . . 19 . Level 3 6 | . . . . . . . 14 . Level 4 14 | . . . . . . . 14 100 Level 5 13 | . . . . . . . 33 . High Security . | . . . . . . . . . Max Security . | . . . . . . . . . Peak Influence 2686 | . 111 252 78 . 55 243 2686 1311 Initial 1309 | . . 2 . . . . 146 1309 Average 609 | . 44 63 18 . 10 40 1200 1216 Influence Increases 4924 | . 441 662 148 . 130 513 2720 310 Destroy 0b10 Robot/C 2000 | . 320 400 120 . 80 300 600 180 Destroy 0b10 Robot/NC 160 | . 30 50 . . . 40 15 25 Destroy Leader 428 | . 80 126 20 . 20 100 30 52 Allied During Kill 10 | . . . 8 . . . . 2 Successful Hack 98 | . 11 50 . . . 11 14 12 Disable Machine 45 | . . 15 . . 15 15 . . Anti-Garrison Action 1900 | . . . . . . . 1900 . Destroy Structure 208 | . . 6 . . . 2 161 39 Lose Combat Pursuer 75 | . . 15 . . 15 45 . . Influence Decreases 3735 | . 434 669 148 . 130 287 260 1807 Entered New Map 1462 | . . 5 . . . . 80 1377 Time Decay 1763 | . 424 416 148 . 130 265 . 380 Lost Part 232 | . 10 . . . . 22 170 30 Lost Ally 30 | . . . . . . . 10 20 Purge Threat 248 | . . 248 . . . . . . Squads Dispatched 10 | . 4 1 . . . 1 . 4 Investigation 5 | . 4 1 . . . . . . Extermination . | . . . . . . . . . Reinforcement 3 | . . . . . . 1 . 2 Assault 2 | . . . . . . . . 2 Garrison . | . . . . . . . . . Intercept . | . . . . . . . . . Searches Triggered . | . . . . . . . . . Construction Impeded 1 | . . . . . . 1 . . Haulers Reinforced . | . . . . . . . . . Active Scanning Responses . | . . . . . . . . . Cargo Convoy Interrupts . | . . . . . . . . . Stealth | -11 -10 -9 -9 -9 -8 -8 -8 -8 --------- Run | Yrd Mat Mat Min Exi Min Mat Gar Mat Distress Signals 4 | . . . . . . 2 1 1 Communications Jammed . | . . . . . . . . . Distress Signals . | . . . . . . . . . Times Spotted 142 | . 23 27 6 . 5 22 35 24 Peak Tracking Total 6 | . 4 6 3 . 3 4 6 5 Tactical Retreats 3 | . . 1 . . 1 1 . . Traps | -11 -10 -9 -9 -9 -8 -8 -8 -8 ------- Run | Yrd Mat Mat Min Exi Min Mat Gar Mat Traps Triggered 9 | . 3 3 . . . . 3 . Indirectly . | . . . . . . . . . Trap Hack Attempts . | . . . . . . . . . Triggered . | . . . . . . . . . Disarmed . | . . . . . . . . . Reprogrammed . | . . . . . . . . . Reused . | . . . . . . . . . Traps Extracted . | . . . . . . . . . Installed . | . . . . . . . . . Triggered . | . . . . . . . . . Machines | -11 -10 -9 -9 -9 -8 -8 -8 -8 ---------- Run | Yrd Mat Mat Min Exi Min Mat Gar Mat Machines Disabled 9 | . . 1 . . 1 1 6 . Max in Single Turn 2 | . . 1 . . 1 1 2 . Garrison Relay 2 | . . . . . . . 2 . Phase Generator 1 | . . . . . . . 1 . Machines Repaired . | . . . . . . . . . Machines Dismantled . | . . . . . . . . . Machines Sabotaged . | . . . . . . . . . Overloaded Fab Kills . | . . . . . . . . . Hacking | -11 -10 -9 -9 -9 -8 -8 -8 -8 --------- Run | Yrd Mat Mat Min Exi Min Mat Gar Mat Machines Accessed 36 | . 10 12 . 1 . 7 3 3 Terminals 26 | . 8 10 . . . 4 3 1 Fabricators . | . . . . . . . . . Repair Stations 3 | . 1 . . . . 1 . 1 Recycling Units 1 | . 1 . . . . . . . Scanalyzers 4 | . . 2 . . . 1 . 1 Garrison Access 1 | . . . . . . 1 . . Total Hacks 91 | . 27 37 . 1 . 13 6 7 Successful 47 | . 13 23 . 1 . 6 1 3 Failed 42 | . 14 13 . . . 6 5 4 Catastrophic 7 | . 2 3 . . . . 2 . Database Lockouts 2 | . . 1 . . . 1 . . Manual 33 | . 13 12 . 1 . 7 . . Terminals 63 | . 21 26 . . . 8 6 2 Fabricators . | . . . . . . . . . Repair Stations 9 | . 4 . . . . 2 . 3 Recycling Units 2 | . 2 . . . . . . . Scanalyzers 15 | . . 11 . . . 2 . 2 Garrison Access 1 | . . . . . . 1 . . Terminal Hacks 15 | . 3 9 . 1 . 1 1 . Emergency Access Points 1 | . . . . . . . 1 . Unreport Threat 3 | . . 3 . . . . . . Surveillance Status 1 | . . 1 . . . . . . Patrol Status 1 | . . 1 . . . . . . Transport Status 1 | . . 1 . . . . . . Registered Components 1 | . . 1 . . . . . . Registered Prototypes 1 | . . 1 . . . . . . Zone Layout 5 | . 3 1 . . . 1 . . Proto ID Catalog 1 | . . . . 1 . . . . Fabricator Hacks . | . . . . . . . . . Repair Station Hacks 4 | . 3 . . . . . . 1 Scan Component 3 | . 2 . . . . . . 1 Repair 1 | . 1 . . . . . . . Recycling Unit Hacks 1 | . 1 . . . . . . . Retrieve Components 1 | . 1 . . . . . . . Scanalyzer 11 | . . 8 . . . 1 . 2 Insert Component 3 | . . 3 . . . . . . Analyze 3 | . . 3 . . . . . . Retrieve Study 5 | . . 2 . . . 1 . 2 Garrison Access Hacks 1 | . . . . . . 1 . . Unlock Access 1 | . . . . . . 1 . . Unauthorized Hacks 14 | . 6 5 . . . 3 . . Terminals 14 | . 6 5 . . . 3 . . Skim 14 | . 6 5 . . . 3 . . Fabricators . | . . . . . . . . . Repair Stations . | . . . . . . . . . Recycling Units . | . . . . . . . . . Scanalyzers . | . . . . . . . . . Garrison Access . | . . . . . . . . . Data Cores Recovered 2 | . . 1 . . . . . 1 Used 1 | . . 1 . . . . . . Hacking Detections 27 | . 9 9 . . . 4 3 2 Full Trace Events 2 | . 2 . . . . . . . Feedback Events . | . . . . . . . . . Feedback Blocked . | . . . . . . . . . Robot Schematics Acquired . | . . . . . . . . . Robots Built . | . . . . . . . . . Authchips . | . . . . . . . . . Time . | . . . . . . . . . Total Robot Build Rating . | . . . . . . . . . Part Schematics Acquired 3 | . . 3 . . . . . . Parts Built . | . . . . . . . . . Authchips . | . . . . . . . . . Time . | . . . . . . . . . Total Part Build Rating . | . . . . . . . . . Part Studies Acquired 5 | . . 2 . . . 1 . 2 Parts Repaired 1 | . 1 . . . . . . . Time 32 | . 32 . . . . . . . Parts Recycled . | . . . . . . . . . Recycled Matter . | . . . . . . . . . Retrieved Matter . | . . . . . . . . . Retrieved Components . | . . . . . . . . . Parts Scanalyzed 3 | . . 3 . . . . . . Part Schematics Acquired 3 | . . 3 . . . . . . Parts Damaged . | . . . . . . . . . Bothacking | -11 -10 -9 -9 -9 -8 -8 -8 -8 ------------ Run | Yrd Mat Mat Min Exi Min Mat Gar Mat Used RIF Installer 1 | . . . . . . . 1 . Robots Hacked 5 | . . . . . . . 3 2 Non-combat 2 | . . . . . . . 2 . Combat 3 | . . . . . . . 1 2 Robot Hacks Applied 10 | . . . . . . . 8 2 parse_system 1 | . . . . . . . 1 . amplify_resonance 1 | . . . . . . . . 1 disable_weapons 1 | . . . . . . . 1 . go_dormant 1 | . . . . . . . 1 . streamctrl_low 4 | . . . . . . . 4 . formatsys_low 1 | . . . . . . . 1 . formatsys_high 1 | . . . . . . . . 1 Relay Couplers Released 10 | . . . . . . . 10 . Machine Destruction 10 | . . . . . . . 10 . Attached 5 | . . . . . . . 2 3 Fabnet Peak Effective % . | . . . . . . . . . Robots Rewired . | . . . . . . . . . Allies Hacked . | . . . . . . . . . Hacks Repelled . | . . . . . . . . . Allies | -11 -10 -9 -9 -9 -8 -8 -8 -8 -------- Run | Yrd Mat Mat Min Exi Min Mat Gar Mat Total Allies 5 | . . . 2 . . . 2 1 Largest Group 2 | . . . 2 2 . . 2 1 Highest-Rated Group 90 | . . . 43 43 . . 46 90 Highest-Rated Ally 90 | . . . 31 31 . . 23 90 Total Orders 7 | . . . . . . . 5 2 GUARD 1 | . . . . . . . . 1 AID 6 | . . . . . . . 5 1 Ally Attacks 9 | . . . 1 . . . . 8 Total Damage 212 | . . . 22 . . . . 190 Kills 1 | . . . 1 . . . . . Allies Corrupted . | . . . . . . . . . Allies Melted . | . . . . . . . . . Intel | -11 -10 -9 -9 -9 -8 -8 -8 -8 ------- Run | Yrd Mat Mat Min Exi Min Mat Gar Mat Active Infowar (turns) 3454 | . 863 1180 645 374 392 . . . Structural 139 | . 139 . . . . . . . Machine Analysis 3315 | . 724 1180 645 374 392 . . . Robot Analysis Total . | . . . . . . . . . Derelict Logs Recovered 2 | . . . 2 . . . . . Drone Launches . | . . . . . . . . . Drone Recoveries . | . . . . . . . . . Exploration | -11 -10 -9 -9 -9 -8 -8 -8 -8 ------------- Run | Yrd Mat Mat Min Exi Min Mat Gar Mat Turns Passed 10909 | 76 1174 1180 645 374 648 1650 4265 897 Spaces Moved 5033 | 45 791 808 409 249 382 676 1455 218 Core 6 | 6 . . . . . . . . Treads 2005 | 39 107 . . . . 188 1453 218 Legs 2 | . . . . . . . 2 . Wheels 3020 | . 684 808 409 249 382 488 . . Hover . | . . . . . . . . . Flight . | . . . . . . . . . Fastest Speed 50 | 50 90 105 150 150 150 110 240 200 Average Speed 174 | 145 104 109 150 150 150 176 258 238 Slowest Speed 900 | 160 160 150 150 150 150 400 900 490 Overloaded Moves . | . . . . . . . . . Propulsion Burnouts . | . . . . . . . . . Robots Hopped . | . . . . . . . . . Potential Cave-ins . | . . . . . . . . . Cave-ins Triggered . | . . . . . . . . . Exploration Rate (%) 57 | 4 85 76 83 59 62 40 95 14 Regions Visited 8 Branch Regions 3 Pre-discovered Areas 5 | . 1 4 . . . . . . Known Exits Taken 4 | . . 1 1 . 1 1 . . Unknown Exits Taken 3 | 1 1 . . 1 . . . . Scrap Searched 4 | . . . 2 . 2 . . . Spaces Dug 7 | . . . . . . . 7 . Terrain Destroyed 185 | . . . . . . 2 154 29 Melee 7 | . . . . . . . 7 . Projectile 3 | . . . . . . 2 1 . AOE 175 | . . . . . . . 146 29 Terrain Rammed . | . . . . . . . . . Walls Destroyed . | . . . . . . . . . Machines Disabled . | . . . . . . . . . Actions | -11 -10 -9 -9 -9 -8 -8 -8 -8 --------- Run | Yrd Mat Mat Min Exi Min Mat Gar Mat Total 6594 | 53 1032 1005 428 250 430 1072 1796 528 Wait 877 | . 117 87 12 . 28 278 117 238 Move 5026 | 44 790 807 408 248 381 676 1454 218 Hop . | . . . . . . . . . Pick Up 122 | 2 24 14 1 2 1 31 42 5 Fast Attach 61 | 6 9 8 . . 1 14 15 8 Attach 16 | . 1 2 . . 1 6 3 3 Detach 10 | 1 . . . . 1 7 . 1 Swap 58 | . 10 12 . . 3 3 19 11 Drop 97 | . 15 25 1 . 1 18 27 10 Fire 281 | . 65 50 6 . 13 39 75 33 Melee 29 | . . . . . . . 28 1 Ram 1 | . 1 . . . . . . . Kick . | . . . . . . . . . Crush 1 | . . . . . . . 1 . Escape Stasis 4 | . . . . . . . 4 . Rewire 11 | . . . . . . . 11 . Trap . | . . . . . . . . . Miscellaneous . | . . . . . . . . . Route ------- -11/Scrapyard -10/Materials (discovered 6 exits: *Mat x3 / [*Min x2] / [*Sub]) -9/Materials (discovered 5 exits: *Mat x3 / *Min x2) -9/Mines (discovered 3 exits: *Mat x2 / *Exi) -9/Exiles -8/Mines -8/Materials -8/Garrison (discovered 3 exits: *Mat x3) -8/Materials History --------- Turn | Location | Event 4 | -11/Scrapyard | Discovered new exit (range 15) 77 | -11/Scrapyard | Entered Materials 327 | -10/Materials | Build established: Mutant 384 | -10/Materials | Discovered new exit (range 8) 486 | -10/Materials | Discovered new exit (range 7) 522 | -10/Materials | Discovered new exit (range 6) 640 | -10/Materials | Discovered new exit (range 14) 771 | -10/Materials | Discovered new exit (range 12) 812 | -10/Materials | Repaired Arm. Wheel 1046 | -10/Materials | Discovered new exit (range 5) 1239 | -10/Materials | Learned location of Recycling (-7) 1251 | -10/Materials | Entered another Materials area 1251 | -9/Materials | Evolved 2 slots: Weapon x2 1537 | -9/Materials | Build established: Skirmisher 1548 | -9/Materials | Central database locked down 1611 | -9/Materials | Discovered new exit (range 4) 1840 | -9/Materials | Build established: Scavenger-Skirmisher 2003 | -9/Materials | Discovered new exit (range 16) 2221 | -9/Materials | Build established: Skirmisher 2259 | -9/Materials | Learned Storage trap positions 2298 | -9/Materials | Learned location of Zion (-6) 2358 | -9/Materials | Loaded intel: 2 recycling unit locations 2359 | -9/Materials | Learned location of Mines (-9) 2360 | -9/Materials | Identified exit to Mines 2360 | -9/Materials | Identified exit to Materials 2367 | -9/Materials | Learned location of Mines (-8) 2431 | -9/Materials | Entered Mines 2529 | -9/Mines | Learned Materials security intel 2673 | -9/Mines | Found a damaged Exp. Sensor Array with a note attached 2677 | -9/Mines | Found Prototype Device 2983 | -9/Mines | A weapon hastily lodged in a ceiling crevice suddenly fell to the ground 3056 | -9/Mines | Identified exit to Exiles 3070 | -9/Mines | Deemed a non-threat by the Exiles lab entrance 3076 | -9/Mines | Entered Exiles 3076 | -9/Exiles | Accompanied by 2 allies 3106 | -9/Exiles | Led the pair of lost Derelicts to a safe place 3111 | -9/Exiles | Met 8R-AWN 3139 | -9/Exiles | Met EX-HEX 3183 | -9/Exiles | Met EX-BIN 3201 | -9/Exiles | Aligned with FarCom system 3202 | -9/Exiles | Given EX-Vault access code 3237 | -9/Exiles | Opened EX-Vault 3249 | -9/Exiles | Found Gui. Plasma Cannon 3284 | -9/Exiles | Warned to stay clear of 0b10 Research branches 3323 | -9/Exiles | Met EX-DEC 3432 | -9/Exiles | Discovered new exit (range 11) 3450 | -9/Exiles | Left Exiles lab with Gui. Plasma Cannon 3450 | -9/Exiles | Entered Mines 4089 | -8/Mines | Discovered exit to Materials (range 6) 4098 | -8/Mines | Entered Materials 4098 | -8/Materials | Evolved 2 slots: Propulsion x2 4172 | -8/Materials | Central database locked down 4895 | -8/Materials | Lost 3 parts (3n) 5748 | -8/Materials | Identified exit to Garrison 5748 | -8/Materials | Entered Garrison 6066 | -8/Garrison | Triggered checkpoint 6151 | -8/Garrison | Garrison Relay disabled 6504 | -8/Garrison | Triggered checkpoint 6524 | -8/Garrison | Triggered checkpoint 6613 | -8/Garrison | Destroyed 12 combat bots 6616 | -8/Garrison | Lost 12 parts (1p1n4u6w) 6897 | -8/Garrison | Build established: Scavenger-Skirmisher 6984 | -8/Garrison | Phase Generator disabled 7248 | -8/Garrison | Triggered checkpoint 7268 | -8/Garrison | Installed Relay Interface Framework 7301 | -8/Garrison | Discovered new exit (range 7) 7739 | -8/Garrison | Build established: Bothacker-Skirmisher 7940 | -8/Garrison | Triggered checkpoint 8036 | -8/Garrison | Triggered checkpoint 8300 | -8/Garrison | Triggered checkpoint 8305 | -8/Garrison | Garrison Relay disabled 8386 | -8/Garrison | Discovered new exit (range 5) 9452 | -8/Garrison | Spotted B-75 Beast 9463 | -8/Garrison | Core integrity fell below 50% 9683 | -8/Garrison | Discovered new exit (range 3) 10013 | -8/Garrison | Entered Materials 10413 | -8/Materials | First assault squad dispatched 10556 | -8/Materials | Core integrity fell below 20% 10910 | -8/Materials | Destroyed self with Heavy Rocket Launcher Last Messages --------------- 10877_ System corrupted: Imp. Treads+ fused. 10900_ C-45 Heavy ARC suffers critical hit (Burn). 10900_ C-45 Heavy ARC suffers critical hit (Destroy). 10900_ Destroyed Unknown Wheel. 10901_ C-45 Heavy ARC bursts open, deploying its payload. 10901_ G-50 Soldier unfolds itself. 10901_ L-31 Rogue unfolds itself. 10901_ G-47 Trooper unfolds itself. 10901_ I-25 Savior unfolds itself. 10904_ I-25 Savior destroyed. 10904_ G-47 Trooper destroyed. 10906_ Thermic Laser destroyed. 10908_ Critical hit (Burn: +37). 10909_ The unstable cave ceiling collapses. 10909_ Thermic Laser destroyed. 10909_ K-01 Serf collects debris. 10909_ U-05 Engineer builds a Wall. Map ----- +----------------------------------------------------+ | | | | | | | | | | | | | | | | | | | | | | | | | | | | | | | | | | | | | | | | | ??????????????????????????????????????? | | ??????????????????????######??????????? | | ???????????############ ######?????? | | ???????????? #?????? | | ????????????????? #?????? | | ?????????############## @ #??##?????? | | ?????????# "" =*! l ???? | | ?????????# ""S *=% """ #?? | | ?????????# "" != g= """ #?? | | ?????????# = %!! """ ??? | | ?????????# k %% !???? | | ?????????########### g! # """ ??? | | ??????????# # = """ #?? | | ??????????# ] #% """ #?? | | ??????????#? # # #?? | | ??????????#[ # u#################?? | | ?????????######+## + /?? ???????????? | | ?????????+ # ??? #??????????? | | ?????????#### # ]?? #??????????? | | ???###+##???# ##### ???#??????????? | | #### #### #???? "??????????????? | | #???? "??????????????? | | #?????##??????????????? | | #?????????????????????? | | +### ###+###########??????????????? | | ???## ?# ##!!/ [[#??????????????? | | ????# ??# ##!!//[[#??????????????? | | ????# ???# ## #??????????????? | | ????#????#""" ##### #??????????????? | | ?????????#""" #???# #??????????????? | +----------------------------------------------------+ Best States ------------- Heat Dissipation 50 Energy Generation 18 Energy Capacity 280 Matter Stores 300 Matter Capacity 300 Sight Range 16 Terrain Scan Density 10 Additional Mass Support 6 Armor Coverage 225 Resistance: KI 20 Evasion (%) 42 Recoil Reduction 4 Relay Coupler Types 1 Relay Coupler Value 40 Authchip Count 1 Item Schematics ----------------- Arm. Wheel | -9/Materials | Scanalyzed Cld. Ion Engine | -9/Materials | Scanalyzed Lrg. Storage Unit | -9/Materials | Scanalyzed Robot Schematics ------------------ None Fabricated ------------ Nothing Repaired ---------- Arm. Wheel | 39% | -10/Materials Studied --------- Hvy. Assault Rifle | -9/Materials | Hacked Beam Rifle | -9/Materials | Hacked Arm. Wheel | -8/Materials | Hacked Imp. Treads | -8/Materials | Hacked Lgt. Nuclear Core | -8/Materials | Hacked Alien Tech Used ----------------- None Achievements -------------- Assimilation Complete Error 47 Mindtrick Challenges ------------ None Game ------ Seed WarlordExperimentalShovel Manual? 0 Play Time 01:20:08 Cumulative 65.4 hours Start 2026.04.25 @ 19:11:55 End 2026.04.25 @ 20:35:06 Sessions 1 Manual Loads 0 Difficulty Rogue Special Mode None Game No. 68 Rogue 68 Adventurer 0 Explorer 0 Win Type - Total 1 Types 1/0/0/0/0/0/0/0/0/0 Lore% 25 Gallery% 41 Achievement% 36 Wizard Run 0 Options --------- Layout 1 ASCII 0 Keyboard 0 Movement Mouse Keybinds 0 Fullscreen 1 Font 24/Smallcaps Map View 50x35 Zoom Use 0% Tactical HUD 1 Map Filters NONE Filters NONE Steam 1 RUN: 1fe36001-9c15-4510-8416-bfa2444d7d90